bitfinex-derivatives/quotes_SOLF0:USTF0_20241212
["timestamp","ask_amount","ask_price","bid_price","bid_amount"]
[1734039815863,4.3182892,226.93,226.89,6.54493333]
[1734039816070,1.4154,227.0,226.91,6.54493333]
[1734039816071,4.31674193,226.92,226.91,6.54493333]
[1734039816366,1.4154,227.0,226.91,6.54493333]
[1734039816570,11.21977467,226.99,226.97,6.54493333]
[1734039816771,11.21977467,226.98,226.97,6.54493333]
[1734039817176,11.21947518,226.98,226.97,6.54493333]
[1734039817476,4.31518276,226.98,226.97,6.54493333]
[1734039818680,4.31518276,226.98,226.97,8.74723333]
[1734039819177,2.99275087,226.98,226.97,8.74723333]
[1734039819474,1.4154,227.06,226.97,6.54493333]
[1734039819672,6.87747355,227.05,227.01,6.54493333]
[1734039819873,6.87747355,227.04,227.01,8.74683333]
[1734039820076,6.87747355,227.03,226.99,2.16]
[1734039820276,8.74603333,227.1,227.02,6.54493333]
[1734039820478,9.68825683,227.09,227.02,6.54493333]
[1734039820779,6.87885611,227.08,227.02,8.74673333]
[1734039821072,6.87885611,227.07,227.02,8.74673333]
[1734039821379,6.87885611,227.06,227.02,8.74673333]
[1734039821680,6.87885611,227.05,227.02,8.74673333]
[1734039821873,6.87885611,227.04,227.02,2.2018]
[1734039822079,6.87885611,227.03,227.02,2.2018]
[1734039822379,6.87885611,227.03,227.01,6.54493333]
[1734039822380,6.87885611,227.07,227.01,8.74683333]
[1734039822682,6.87885611,227.06,226.92,1.406]
[1734039822873,6.87885611,227.05,226.98,6.54493333]
[1734039823178,6.54493333,227.06,226.98,6.54493333]
[1734039823179,6.87885611,227.04,226.98,8.70493333]
[1734039823374,6.87885611,227.03,226.98,8.70493333]
[1734039823579,6.87885611,227.02,226.98,8.70493333]
[1734039823773,6.87885611,227.01,226.98,8.70493333]
[1734039823978,6.87885611,227.0,226.98,8.70493333]
[1734039824178,6.54493333,227.06,226.98,8.70493333]
[1734039824381,6.88942257,227.05,226.98,8.70493333]
[1734039824577,6.88942257,227.04,227.0,6.54493333]
[1734039824774,6.88942257,227.03,227.0,6.54493333]
[1734039824976,6.88942257,227.02,227.0,6.54493333]
[1734039825277,6.88942257,227.01,227.0,6.54493333]
[1734039826579,6.88942257,227.01,227.0,8.74693333]
[1734039826983,6.88942257,227.01,227.0,6.54493333]
[1734039828786,6.88942257,227.01,226.99,2.202]
[1734039828987,6.88942257,227.0,226.99,2.202]
[1734039829393,8.74643333,227.06,226.99,2.202]
[1734039829394,6.88942257,227.05,226.99,2.202]
[1734039829685,9.70588501,227.04,226.99,8.74693333]
[1734039829891,6.88942257,227.03,226.99,8.74693333]
[1734039830092,8.74643333,227.06,226.99,8.74693333]
[1734039830093,6.88942257,227.02,226.99,8.74693333]
[1734039830292,8.74643333,227.06,226.99,8.74693333]
[1734039830293,2.2015,227.05,226.99,8.74693333]
[1734039830490,6.89490269,227.04,226.99,8.74693333]
[1734039830696,6.89490269,227.03,226.99,8.74693333]
[1734039830898,6.89490269,227.02,226.99,6.54493333]
[1734039831189,6.89490269,227.02,226.92,1.406]
[1734039831190,11.20419326,227.01,226.92,1.406]
[1734039831398,11.20419326,227.0,226.96,8.70493333]
[1734039831595,11.20419326,226.99,226.96,8.70493333]
[1734039831797,11.20419326,226.98,226.95,2.16]
[1734039831990,11.20419326,226.97,226.95,8.70493333]
[1734039832194,4.30929057,226.96,226.93,2.2027]
[1734039832498,11.20545092,226.95,226.94,6.54493333]
[1734039833299,4.30929057,226.95,226.94,8.74753333]
[1734039833591,4.30929057,226.95,226.94,6.54493333]
[1734039833989,4.30929057,226.95,226.94,8.74753333]
[1734039836896,6.54493333,227.04,226.97,2.2022]
[1734039837097,11.20014792,227.03,226.97,8.74713333]
[1734039837301,8.74653333,227.04,226.97,8.74713333]
[1734039837302,11.20014792,227.02,226.97,8.74713333]
[1734039837502,11.20014792,227.01,226.97,8.74713333]
[1734039837802,11.20014792,227.0,226.97,6.54493333]
[1734039838002,11.20014792,226.99,226.97,6.54493333]
[1734039838199,8.74653333,227.04,226.97,6.54493333]
[1734039838200,11.20014792,226.98,226.97,6.54493333]
[1734039838403,4.3077492,226.98,226.97,6.54493333]
[1734039838610,4.3077492,226.98,226.97,8.74723333]
[1734039839510,11.19961909,226.98,226.97,8.74723333]
[1734039840203,11.19928717,226.98,226.97,6.54493333]
[1734039840399,4.30741814,226.98,226.97,8.74723333]
[1734039840600,1.3292,227.08,226.97,6.54493333]
[1734039840806,9.70667696,227.07,227.04,6.54493333]
[1734039841011,6.89119123,227.06,227.04,6.54493333]
[1734039841204,1.3292,227.08,227.04,6.54493333]
[1734039841205,6.89119123,227.05,227.04,6.54493333]
[1734039841505,6.89119123,227.05,227.04,8.74653333]
[1734039842303,6.54493333,227.14,227.04,6.54493333]
[1734039842503,4.1945,227.18,227.09,6.54493333]
[1734039842504,9.62021839,227.13,227.09,6.54493333]
[1734039842707,6.80427891,227.12,227.09,6.54493333]
[1734039843003,6.80427891,227.11,227.09,6.54493333]
[1734039843211,6.80427891,227.1,227.09,6.54493333]
[1734039843605,6.80427891,227.1,227.09,8.74603333]
[1734039844105,6.80427891,227.1,227.09,6.54493333]
[1734039845307,6.80427891,227.1,227.05,2.16]
[1734039845511,6.80427891,227.09,227.05,8.70493333]
[1734039845803,6.80427891,227.08,227.05,10.90633333]
[1734039846008,6.54493333,227.14,227.07,6.54493333]
[1734039846208,9.62121038,227.13,227.07,6.54493333]
[1734039846408,9.62121038,227.13,227.07,8.74623333]
[1734039846409,9.62121038,227.12,227.07,8.74623333]
[1734039846609,9.62121038,227.11,227.07,8.74623333]
[1734039846814,6.8044078,227.1,227.07,8.74623333]
[1734039847010,6.8044078,227.09,227.07,8.74623333]
[1734039847210,6.8044078,227.08,227.07,8.74623333]
[1734039847612,6.8044078,227.12,227.07,8.74623333]
[1734039847814,6.8044078,227.11,227.07,6.54493333]
[1734039848010,6.8044078,227.1,227.08,2.2012]
[1734039848209,6.8044078,227.09,227.08,2.2012]
[1734039848612,6.8044078,227.13,227.08,2.2012]
[1734039848815,0.39945,227.15,227.05,2.16]
[1734039848816,2.82042943,227.12,227.11,8.74583333]
[1734039849012,0.39945,227.15,227.11,8.70493333]
[1734039849013,6.81000426,227.14,227.11,8.70493333]
[1734039849308,6.81000426,227.13,227.11,2.16]
[1734039849514,6.80834357,227.12,227.11,2.16]
[1734039849906,0.39945,227.15,227.11,2.16]
[1734039849907,0.39945,227.15,227.14,2.2006]
[1734039850515,6.54493333,227.26,227.14,6.54493333]
[1734039850516,8.74453333,227.26,227.14,6.54493333]
[1734039850709,9.62324958,227.25,227.21,6.54493333]
[1734039850911,8.74453333,227.26,227.21,6.54493333]
[1734039850912,9.62324958,227.24,227.21,6.54493333]
[1734039851104,9.62324958,227.23,227.21,6.54493333]
[1734039851310,47.17901161,227.31,227.21,6.54493333]
[1734039851311,6.80332834,227.22,227.21,6.54493333]
[1734039852214,6.79925877,227.22,227.21,6.54493333]
[1734039852610,4.24695968,227.22,227.21,6.54493333]
[1734039852811,11.04621845,227.22,227.21,8.74493333]
[1734039854116,11.04621845,227.22,227.17,2.2003]
[1734039854312,11.04621845,227.21,227.17,2.16]
[1734039854516,11.04621845,227.2,227.17,2.16]
[1734039854717,11.04621845,227.19,227.17,2.16]
[1734039854912,11.04621845,227.18,227.17,2.16]
[1734039855919,4.24695968,227.18,227.17,2.16]
[1734039856424,4.24695968,227.18,227.17,4.3604]
[1734039856622,4.24695968,227.18,227.17,2.16]
[1734039858814,4.23759811,227.18,227.17,2.16]
[1734039859522,11.01719304,227.18,227.16,8.70493333]
[1734039859722,11.01719304,227.17,227.16,8.70493333]
[1734039860217,11.01719304,227.17,227.14,6.54493333]
[1734039860424,0.35947,227.27,227.13,2.16]
[1734039860425,11.01719304,227.16,227.13,2.16]
[1734039860717,11.01719304,227.15,227.13,2.16]
[1734039860923,11.01857914,227.14,227.13,2.16]
[1734039861417,4.23759811,227.14,227.13,2.16]
[1734039861619,2.16,227.23,227.13,2.16]
[1734039861620,13.21902802,227.22,227.13,2.16]
[1734039861820,11.01912802,227.21,227.17,6.54493333]
[1734039862021,11.01912802,227.2,227.19,6.54493333]
[1734039862618,4.23759811,227.2,227.19,8.70493333]
[1734039864427,0.35947,227.27,227.19,8.70493333]
[1734039864620,11.01268498,227.26,227.23,6.54493333]
[1734039864828,0.35947,227.27,227.23,6.54493333]
[1734039864829,11.01268498,227.25,227.23,6.54493333]
[1734039865025,11.01268498,227.24,227.23,6.54493333]
[1734039865225,11.01247514,227.24,227.23,6.54493333]
[1734039867125,11.01247514,227.24,227.23,8.74473333]
[1734039867829,11.01247514,227.24,227.23,6.54493333]
[1734039868842,11.01247514,227.24,227.23,8.74473333]
[1734039869132,4.23556736,227.24,227.23,8.74473333]
[1734039871828,4.2296819,227.24,227.23,8.74473333]
[1734039874829,2.199,227.31,227.23,6.54493333]
[1734039875043,10.99437306,227.3,227.28,6.54493333]
[1734039875225,10.99437306,227.29,227.28,6.54493333]
[1734039876341,10.99344389,227.29,227.28,8.74423333]
[1734039878037,4.22824765,227.29,227.28,8.74423333]
[1734039878337,6.54493333,227.39,227.28,6.54493333]
[1734039878541,9.57549482,227.38,227.34,6.54493333]
[1734039878836,11.77389482,227.37,227.34,6.54493333]
[1734039879032,6.54493333,227.41,227.34,6.54493333]
[1734039879033,6.76679107,227.36,227.34,6.54493333]
[1734039879237,6.76679107,227.35,227.34,6.54493333]
[1734039881037,6.76679107,227.35,227.34,8.74353333]
[1734039881434,6.76679107,227.35,227.34,10.90353333]
[1734039881743,2.7197,227.44,227.34,10.90353333]
[1734039881744,6.54493333,227.6,227.34,54.46493333]
[1734039881937,6.54493333,227.6,227.5,6.54493333]
[1734039881938,6.87397499,227.59,227.5,6.54493333]
[1734039882140,6.54493333,227.56,227.48,6.54493333]
[1734039882439,2.81367499,227.55,227.49,2.16]
[1734039882644,2.81367499,227.55,227.48,6.54493333]
[1734039882837,2.81367499,227.55,227.48,8.70493333]
[1734039883242,2.81367499,227.55,227.48,2.16]
[1734039883539,2.81367499,227.54,227.48,2.16]
[1734039883746,2.81367499,227.53,227.48,2.16]
[1734039883935,2.81367499,227.52,227.48,2.16]
[1734039884139,2.81367499,227.51,227.48,4.3572]
[1734039884434,14.26280468,227.59,227.48,4.3572]
[1734039884634,2.80939784,227.58,227.48,4.3572]
[1734039884842,2.80939784,227.57,227.48,4.3572]
[1734039885035,14.26280468,227.59,227.48,4.3572]
[1734039885337,2.80940477,227.58,227.48,4.3572]
[1734039885741,2.1966,227.55,227.48,4.3572]
[1734039886042,2.80940477,227.54,227.49,2.1971]
[1734039886236,2.80940477,227.53,227.49,2.1971]
[1734039886444,2.80940477,227.52,227.44,10.20250468]
[1734039886636,14.26280468,227.59,227.45,4.3574]
[1734039886837,2.80493115,227.58,227.45,2.16]
[1734039887043,2.1969,227.52,227.45,2.16]
[1734039887242,2.80493115,227.51,227.45,2.16]
[1734039887443,2.80493115,227.5,227.45,2.16]
[1734039887746,2.1967,227.54,227.48,2.1972]
[1734039887947,2.80341848,227.53,227.48,2.1972]
[1734039888250,14.26280468,227.59,227.43,5.19979397]
[1734039888444,2.80343054,227.58,227.44,12.36250468]
[1734039888641,2.80343054,227.57,227.44,12.36250468]
[1734039888844,2.80343054,227.56,227.44,12.36250468]
[1734039889045,2.80343054,227.55,227.44,12.36250468]
[1734039889237,2.80343054,227.54,227.44,12.36250468]
[1734039889443,2.1969,227.52,227.47,2.1973]
[1734039889643,2.80343054,227.51,227.47,2.1973]
[1734039889943,2.80343054,227.5,227.47,2.1973]
[1734039890247,2.1969,227.52,227.47,2.1973]
[1734039890248,3.97249306,227.49,227.47,2.1973]
[1734039890545,3.97249306,227.48,227.47,2.1973]
[1734039892653,3.97249306,227.48,227.47,12.39980468]
[1734039893444,2.1968,227.53,227.47,12.39980468]
[1734039893649,3.9724641,227.52,227.48,2.1972]
[1734039893848,3.9724641,227.51,227.49,2.16]
[1734039894054,3.9724641,227.5,227.49,2.16]
[1734039894446,3.9724641,227.5,227.49,4.3571]
[1734039895155,3.9724641,227.5,227.49,2.16]
[1734039895357,3.9724641,227.5,227.44,10.20250468]
[1734039895558,3.9724641,227.49,227.39,2.16]
[1734039895760,2.1974,227.46,227.39,2.16]
[1734039896054,4.1294,227.49,227.39,2.16]
[1734039896055,3.9724641,227.45,227.39,2.16]
[1734039896251,3.9724641,227.44,227.39,2.16]
[1734039896458,3.9724641,227.43,227.39,2.16]
[1734039896648,4.1294,227.49,227.39,2.16]
[1734039896649,3.9724641,227.42,227.39,2.16]
[1734039896849,4.1294,227.49,227.39,2.16]
[1734039896850,3.9724641,227.41,227.39,2.16]
[1734039897054,2.1976,227.45,227.39,2.16]
[1734039897256,3.97249211,227.44,227.39,2.16]
[1734039897457,3.97249211,227.43,227.38,2.1982]
[1734039897657,3.97249211,227.43,227.39,2.16]
[1734039898251,3.97268311,227.42,227.39,2.16]
[1734039898454,2.1976,227.44,227.39,2.16]
[1734039898660,3.97283122,227.43,227.39,2.16]
[1734039898964,2.1976,227.44,227.39,2.16]
[1734039898965,3.97283122,227.42,227.39,2.16]
[1734039899260,2.1976,227.44,227.39,2.16]
[1734039899560,3.97343336,227.43,227.39,2.16]
[1734039899760,3.97343336,227.42,227.39,2.16]
[1734039899957,2.1975,227.45,227.39,2.16]
[1734039900157,3.97332444,227.44,227.39,12.36250468]
[1734039900459,3.97332444,227.43,227.39,12.36250468]
[1734039900761,3.97332444,227.42,227.39,12.36250468]
[1734039900961,2.1975,227.46,227.39,14.56060468]
[1734039901256,3.97360763,227.45,227.39,12.36250468]
[1734039901559,3.97360763,227.44,227.39,12.36250468]
[1734039901756,3.97360763,227.43,227.39,12.36250468]
[1734039901959,2.1975,227.46,227.4,2.198]
[1734039902160,3.97408009,227.45,227.4,2.198]
[1734039902459,3.97408009,227.44,227.4,2.198]
[1734039902658,3.97408009,227.43,227.4,2.198]
[1734039902858,2.1975,227.46,227.4,2.198]
[1734039903050,3.9747588,227.45,227.44,2.1977]
[1734039903252,3.9747588,227.45,227.44,4.3577]
[1734039903457,3.9747588,227.45,227.44,2.16]
[1734039903662,3.97538312,227.45,227.44,2.16]
[1734039903860,6.3267,227.49,227.44,2.16]
[1734039904064,3.97516772,227.48,227.44,2.16]
[1734039904260,3.97516772,227.47,227.44,2.16]
[1734039904463,3.97516772,227.46,227.44,2.16]
[1734039904666,3.97516772,227.45,227.44,2.16]
[1734039904854,3.97516772,227.48,227.44,2.16]
[1734039905059,3.97516772,227.47,227.44,2.16]
[1734039905263,3.97516772,227.46,227.44,2.16]
[1734039905466,3.97516772,227.45,227.44,2.16]
[1734039905958,4.1294,227.49,227.37,5.25518388]
[1734039905959,3.97516772,227.48,227.37,5.25518388]
[1734039906160,16.98355196,227.47,227.38,2.16]
[1734039906355,2.198,227.41,227.38,2.16]
[1734039906665,3.97516772,227.4,227.38,2.16]
[1734039907061,3.97516772,227.39,227.38,2.16]
[1734039907554,10.20250468,227.47,227.36,2.1984]
[1734039907555,3.97516772,227.46,227.36,2.1984]
[1734039907758,6.78416888,227.45,227.37,2.16]
[1734039907958,6.78416888,227.44,227.37,2.16]
[1734039908162,4.1294,227.49,227.37,2.16]
[1734039908163,3.97516772,227.43,227.37,2.16]
[1734039908469,3.97516772,227.42,227.39,10.20250468]
[1734039908661,3.97516772,227.41,227.4,2.1981]
[1734039908865,3.97516772,227.41,227.39,10.20250468]
[1734039909064,4.1294,227.49,227.39,10.20250468]
[1734039909359,2.1975,227.47,227.4,2.198]
[1734039909564,6.79377179,227.46,227.39,10.20250468]
[1734039909765,3.98456166,227.45,227.41,2.198]
[1734039909962,3.98456166,227.45,227.42,2.16]
[1734039910664,3.98456166,227.45,227.42,12.36250468]
[1734039910864,4.1913,227.56,227.42,12.36250468]
[1734039911162,4.1913,227.56,227.42,10.20250468]
[1734039911163,6.80183844,227.54,227.42,10.20250468]
[1734039911363,14.39380468,227.56,227.43,2.16]
[1734039911364,17.00434312,227.53,227.43,2.16]
[1734039911570,6.80183844,227.52,227.43,2.16]
[1734039911769,2.1973,227.49,227.43,4.3578]
[1734039911962,4.1913,227.56,227.43,2.16]
[1734039911963,6.80183844,227.48,227.43,2.16]
[1734039912271,6.80183844,227.47,227.43,12.36250468]
[1734039912472,3.98700694,227.46,227.45,2.1975]
[1734039912769,3.98700694,227.46,227.43,2.16]
[1734039912770,6.80341735,227.46,227.43,2.16]
[1734039912969,6.80341735,227.45,227.43,2.16]
[1734039913263,3.98700694,227.44,227.43,2.16]
[1734039913467,3.99201569,227.44,227.43,2.16]
[1734039913670,3.99201569,227.47,227.43,2.16]
[1734039913873,6.8094606,227.46,227.43,2.16]
[1734039914071,6.8094606,227.45,227.43,2.16]
[1734039914264,6.8094606,227.44,227.41,2.16]
[1734039914468,6.8094606,227.43,227.41,2.16]
[1734039914672,6.81021787,227.42,227.36,2.34]
[1734039914868,10.20250468,227.47,227.36,2.34]
[1734039914869,6.81021787,227.41,227.36,2.34]
[1734039915170,6.81021787,227.4,227.36,2.34]
[1734039915362,3.99201569,227.39,227.36,2.34]
[1734039915570,3.99201569,227.38,227.36,4.5385]
[1734039915762,3.99201569,227.37,227.36,14.74100468]
[1734039915965,3.99201569,227.37,227.36,12.54250468]
[1734039916264,4.0201,227.46,227.36,12.54250468]
[1734039916465,6.81845013,227.45,227.36,12.54250468]
[1734039916768,2.1978,227.43,227.37,2.1983]
[1734039916968,6.81848964,227.42,227.37,2.1983]
[1734039917164,6.81848964,227.41,227.36,12.54250468]
[1734039917369,6.81962548,227.4,227.36,12.54250468]
[1734039917565,3.99777437,227.39,227.37,2.1984]
[1734039917765,3.99777437,227.38,227.37,2.1984]
[1734039918162,3.99777437,227.42,227.37,2.1984]
[1734039918363,6.82089805,227.41,227.37,2.1984]
[1734039918562,6.82089805,227.4,227.37,2.1984]
[1734039918866,3.99777437,227.39,227.37,2.1984]
[1734039919067,3.99777437,227.38,227.37,2.1984]
[1734039919371,3.99777437,227.43,227.37,2.1984]
[1734039919571,6.8224141,227.42,227.37,2.1984]
[1734039919773,6.8224141,227.41,227.37,2.1984]
[1734039919973,3.99777437,227.4,227.37,2.1984]
[1734039920173,2.1977,227.44,227.38,2.1983]
[1734039920174,6.82241862,227.39,227.38,2.1983]
[1734039920369,3.99777437,227.39,227.38,2.1983]
[1734039920874,3.99777437,227.43,227.38,2.1983]
[1734039921070,6.82421672,227.42,227.38,2.1983]
[1734039921266,6.82421672,227.41,227.38,2.1983]
[1734039921469,6.82421672,227.4,227.38,2.1983]
[1734039921773,3.99777437,227.39,227.38,2.1983]
[1734039922274,3.99777437,227.43,227.38,2.1983]
[1734039922476,6.8267653,227.42,227.38,2.1983]
[1734039922771,6.8267653,227.41,227.38,2.1983]
[1734039922975,6.8267653,227.4,227.38,2.1983]
[1734039923173,6.8267653,227.39,227.38,2.1983]
[1734039923373,6.8400751,227.39,227.38,2.1983]
[1734039926173,13.21,227.64,227.37,10.20250468]
[1734039926174,1.4261,227.54,227.37,10.20250468]
[1734039926371,2.83409733,227.53,227.43,10.20250468]
[1734039926578,5.03109733,227.52,227.44,2.34]
[1734039926775,2.83409733,227.51,227.44,2.34]
[1734039927078,2.83409733,227.51,227.46,10.20250468]
[1734039927373,2.83409733,227.53,227.46,10.20250468]
[1734039927576,2.83409733,227.52,227.47,2.1974]
[1734039927782,2.83409733,227.53,227.46,10.20250468]
[1734039927976,5.056,227.54,227.46,10.20250468]
[1734039927977,2.83409733,227.52,227.46,10.20250468]
[1734039928282,2.83409733,227.51,227.48,2.1972]
[1734039928476,2.83409733,227.5,227.49,2.34]
[1734039929078,2.83409733,227.53,227.49,2.34]
[1734039930080,2.197,227.52,227.49,2.34]
[1734039930380,2.83409733,227.51,227.49,2.34]
[1734039931083,5.03119733,227.5,227.49,2.34]
[1734039931981,2.1973,227.49,227.44,4.5377]
[1734039932283,2.83409733,227.48,227.44,2.34]
[1734039932677,2.83409733,227.47,227.45,2.1976]
[1734039932981,2.83409733,227.46,227.45,2.1976]
[1734039933180,2.83409733,227.53,227.45,2.1976]
[1734039933378,2.8592,227.54,227.45,2.1976]
[1734039933678,2.1973,227.49,227.45,2.1976]
[1734039933883,2.83595915,227.48,227.45,2.1976]
[1734039935886,2.83595915,227.48,227.46,2.1975]
[1734039936076,2.83595915,227.47,227.46,2.1975]
[1734039936483,2.1972,227.5,227.46,2.1975]
[1734039936983,2.836549,227.49,227.46,2.1975]
[1734039939589,2.836549,227.49,227.48,2.1974]
[1734039939995,2.1971,227.51,227.48,2.1974]
[1734039940186,2.83652987,227.5,227.48,2.1974]
[1734039940382,2.83652987,227.49,227.48,2.1974]
[1734039940583,2.83652987,227.49,227.46,10.20250468]
[1734039940782,2.83652987,227.48,227.46,10.20250468]
[1734039940984,2.8592,227.54,227.44,2.34]
[1734039941187,2.83659935,227.53,227.44,2.34]
[1734039941386,2.83659935,227.52,227.44,2.34]
[1734039941589,2.1973,227.49,227.46,2.1975]
[1734039941794,2.83659935,227.48,227.46,2.1975]
[1734039942093,2.83659935,227.47,227.46,2.1975]
[1734039942587,2.83659935,227.47,227.38,1.406]
[1734039942792,5.1992,227.54,227.39,2.34]
[1734039942793,2.83659935,227.46,227.39,2.34]
[1734039942991,10.20250468,227.5,227.39,2.34]
[1734039942992,2.1979,227.43,227.39,2.1982]
[1734039943391,2.83490491,227.42,227.39,2.1982]
[1734039943591,2.83490491,227.41,227.39,2.1982]
[1734039943785,2.83490491,227.4,227.39,2.1982]
[1734039944090,2.1979,227.43,227.39,2.1982]
[1734039944290,2.1979,227.43,227.38,4.5383]
[1734039944989,2.83468414,227.42,227.38,4.5383]
[1734039945191,2.83468414,227.41,227.37,12.40090468]
[1734039945390,2.83468414,227.4,227.39,2.28]
[1734039947795,2.83468414,227.4,227.34,15.53629029]
[1734039947990,2.83468414,227.39,227.35,2.28]
[1734039948297,2.83468414,227.38,227.35,2.28]
[1734039948594,2.8419,227.46,227.35,4.4786]
[1734039948792,2.8329441,227.45,227.35,4.4786]
[1734039948993,2.8329441,227.44,227.35,4.4786]
[1734039949196,2.8329441,227.43,227.37,10.20250468]
[1734039949393,2.8329441,227.42,227.37,10.20250468]
[1734039949596,2.8329441,227.41,227.39,2.1981]
[1734039949797,2.8329441,227.4,227.39,2.1981]
[1734039949999,2.8329441,227.4,227.37,10.20250468]
[1734039950198,2.8329441,227.39,227.37,10.20250468]
[1734039950498,2.8419,227.46,227.37,10.20250468]
[1734039950694,2.8326492,227.45,227.37,10.20250468]
[1734039950896,2.8326492,227.44,227.37,10.20250468]
[1734039951096,2.8326492,227.43,227.37,10.20250468]
[1734039951393,2.8326492,227.42,227.37,10.20250468]
[1734039951698,2.8326492,227.41,227.37,10.20250468]
[1734039951899,2.8326492,227.4,227.37,10.20250468]
[1734039952200,2.8326492,227.39,227.37,10.20250468]
[1734039952493,2.1977,227.44,227.37,10.20250468]
[1734039952698,2.8339729,227.43,227.39,2.1981]
[1734039952896,2.8339729,227.42,227.4,2.28]
[1734039953103,2.8339729,227.41,227.4,2.28]
[1734039956499,2.1981,227.4,227.37,2.1984]
[1734039956695,2.1981,227.4,227.36,8.81453481]
[1734039956696,2.8339729,227.39,227.36,8.81453481]
[1734039956893,2.8339729,227.38,227.36,8.81453481]
[1734039957097,2.8339729,227.37,227.36,8.81453481]
[1734039957799,2.8339729,227.37,227.36,11.01303481]
[1734039957999,2.8339729,227.37,227.36,6.53453481]
[1734039961101,2.8419,227.46,227.36,6.53453481]
[1734039961403,2.1972,227.5,227.45,6.53453481]
[1734039962011,14.08838127,227.52,227.47,6.53453481]
[1734039962302,6.53453481,227.53,227.47,6.53453481]
[1734039962504,2.1973,227.49,227.45,2.1976]
[1734039963402,2.1972,227.5,227.45,2.1976]
[1734039964204,2.1973,227.49,227.44,2.1977]
[1734039964400,10.20583528,227.55,227.44,2.1977]
[1734039964901,11.89092751,227.54,227.44,2.1977]
[1734039965601,11.89092751,227.54,227.42,2.28]
[1734039965602,2.1975,227.47,227.42,2.28]
[1734039965803,10.20583528,227.52,227.43,2.1978]
[1734039966203,1.3506,227.51,227.43,2.1978]
[1734039966404,2.1973,227.49,227.43,2.1978]
[1734039966606,1.3506,227.51,227.43,2.1978]
[1734039967209,1.3506,227.51,227.42,2.28]
[1734039967906,2.1973,227.49,227.42,2.28]
[1734039968799,3.5478,227.51,227.42,2.28]
[1734039969005,1.3506,227.51,227.42,2.28]
[1734039969704,1.3506,227.51,227.44,2.1977]
[1734039969908,1.3506,227.51,227.42,2.28]
[1734039970210,3.5478,227.51,227.47,2.1974]
[1734039970404,3.5478,227.51,227.42,2.28]
[1734039970405,1.3506,227.51,227.42,2.28]
[1734039970608,2.8018,227.57,227.44,10.20583528]
[1734039970811,2.1969,227.54,227.44,10.20583528]
[1734039971614,2.8018,227.57,227.44,10.20583528]
[1734039971615,2.1967,227.56,227.44,10.20583528]
[1734039972306,2.1967,227.56,227.5,2.1971]
[1734039974505,2.8018,227.57,227.5,2.1971]
[1734039974506,2.1967,227.55,227.5,2.1971]
[1734039976108,2.1966,227.56,227.51,2.1971]
[1734039976519,2.1966,227.56,227.49,2.28]
[1734039976520,2.8018,227.57,227.49,2.28]
[1734039976710,2.1968,227.55,227.49,4.4772]
[1734039977110,2.8018,227.57,227.49,2.28]
[1734039978317,2.8018,227.57,227.5,2.1972]
[1734039978318,2.1968,227.54,227.5,2.1972]
[1734039980517,4.9984,227.57,227.49,2.28]
[1734039980717,47.11654164,227.59,227.51,10.20583528]
[1734039980913,47.11654164,227.59,227.56,2.1966]
[1734039981613,47.11654164,227.59,227.58,2.1964]
[1734039981820,5.31139902,227.63,227.58,2.1964]
[1734039982026,2.7224,227.65,227.54,12.44583528]
[1734039983520,15.42096785,227.67,227.58,2.1963]
[1734039983723,15.42096785,227.67,227.59,2.24]
[1734039985114,5.21513257,227.67,227.59,2.24]
[1734039985318,6.5247161,227.63,227.59,2.24]
[1734039985827,5.21513257,227.67,227.59,2.24]
[1734039985828,6.5247161,227.65,227.59,2.24]
[1734039986222,2.1959,227.63,227.6,2.1961]
[1734039986422,6.5247161,227.65,227.6,2.1961]
[1734039986625,1.3514,227.69,227.6,6.5247161]
[1734039986821,6.5247161,227.68,227.6,6.5247161]
[1734039987325,2.1957,227.66,227.63,2.1959]
[1734039988923,2.1957,227.65,227.61,2.196]
[1734039990524,2.7917,227.72,227.6,6.5247161]
[1734039990525,151.54956486,227.88,227.6,13.21]
[1734039990726,152.92366486,227.95,227.87,6.5247161]
[1734039990924,2.7724,227.99,227.92,6.5247161]
[1734039991127,2.86484097,227.98,227.88,2.1935]
[1734039991326,2.1926,227.98,227.88,10.16287987]
[1734039991522,2.1926,227.98,227.85,2.24]
[1734039991523,2.24,227.98,227.85,12.40287987]